fUSD/lending_fUSD_20250120
["ID","MTS","AMOUNT","RATE_DAILY","PERIOD"]
[349728378,1737397840002,-500.0,0.0002007,2]
[349728380,1737397840012,-500.0,0.0002007,2]
[349728382,1737397840026,-500.0,0.0002007,2]
[349728384,1737397840035,-500.0,0.0002007,2]
[349728386,1737397840045,-500.0,0.0002007,2]
[349728388,1737397840054,-500.0,0.0002007,2]
[349728390,1737397840064,-500.0,0.0002007,2]
[349728392,1737397840073,-500.0,0.0002007,2]
[349728394,1737397840083,-500.0,0.0002007,2]
[349728396,1737397840092,-540.09641533,0.0002007,2]
[349728398,1737397840102,-500.0,0.0002007,2]
[349728400,1737397840113,-381.14479947,0.0002007,2]
[349728402,1737397840123,-500.0,0.0002007,2]
[349728404,1737397840132,-500.0,0.0002007,2]
[349728406,1737397840142,-500.0,0.0002007,2]
[349728408,1737397840151,-500.0,0.0002007,2]
[349728410,1737397840161,-500.0,0.0002007,2]
[349728412,1737397840171,-500.0,0.0002007,2]
[349728414,1737397840181,-500.0,0.0002007,2]
[349728416,1737397840191,-500.0,0.0002007,2]
[349728418,1737397840201,-500.0,0.0002007,2]
[349728420,1737397840211,-500.0,0.0002007,2]
[349728422,1737397840221,-500.0,0.0002007,2]
[349728424,1737397840232,-500.0,0.0002007,2]
[349728426,1737397840241,-500.0,0.0002007,2]
[349728428,1737397840251,-500.0,0.0002007,2]
[349728430,1737397840260,-501.79615603,0.0002007,2]
[349728432,1737397840273,-500.0,0.0002007,2]
[349728434,1737397840283,-500.0,0.0002007,2]
[349728436,1737397840293,-501.80002644,0.0002007,2]
[349728438,1737397840302,-500.0,0.0002007,2]
[349728440,1737397840312,-544.0528145,0.0002007,2]
[349728442,1737397840321,-500.0,0.0002007,2]
[349728444,1737397840334,-500.0,0.0002007,2]
[349728446,1737397840345,-500.0,0.0002007,2]
[349728448,1737397840355,-501.33762575,0.0002007,2]
[349728450,1737397840364,-500.0,0.0002007,2]
[349728452,1737397840374,-500.0,0.0002007,2]
[349728454,1737397840384,-500.0,0.0002007,2]
[349728456,1737397840394,-500.0,0.0002007,2]
[349728458,1737397840405,-500.0,0.0002007,2]
[349728460,1737397840415,-500.0,0.0002007,2]
[349728462,1737397840424,-225.60049379,0.0002007,2]
[349728464,1737397840433,-500.0,0.0002007,2]
[349728466,1737397840442,-500.0,0.0002007,2]
[349728467,1737397840452,-500.0,0.0002007,2]
[349728469,1737397840461,-500.0,0.0002007,2]
[349728472,1737397840472,-500.0,0.0002007,2]
[349728474,1737397840482,-500.0,0.0002007,2]
[349728475,1737397840491,-500.0,0.0002007,2]
[349728477,1737397840501,-500.0,0.0002007,2]
[349728479,1737397840510,-393.53,0.0002007,2]
[349728482,1737397840521,-500.0,0.0002007,2]
[349728484,1737397840530,-302.5921796,0.0002007,2]
[349728485,1737397840540,-500.0,0.0002007,2]
[349728488,1737397840550,-500.0,0.0002007,2]
[349728490,1737397840562,-500.0,0.0002007,2]
[349728491,1737397840571,-500.0,0.0002007,2]
[349728493,1737397840580,-500.0,0.0002007,2]
[349728495,1737397840590,-500.0,0.0002007,2]
[349728497,1737397840599,-500.0,0.0002007,2]
[349728499,1737397840608,-500.0,0.0002007,2]
[349728501,1737397840617,-500.0,0.0002007,2]
[349728503,1737397840627,-500.0,0.0002007,2]
[349728505,1737397840636,-500.0,0.0002007,2]
[349728507,1737397840646,-500.0,0.0002007,2]
[349728509,1737397840655,-500.0,0.0002007,2]
[349728511,1737397840664,-500.0,0.0002007,2]
[349728513,1737397840673,-500.0,0.0002007,2]
[349728515,1737397840683,-500.0,0.0002007,2]
[349728517,1737397840692,-209.54264809,0.0002007,2]
[349728519,1737397840702,-500.0,0.0002007,2]
[349728521,1737397840711,-500.0,0.0002007,2]
[349728523,1737397840721,-500.0,0.0002007,2]
[349728525,1737397840730,-500.0,0.0002007,2]
[349728527,1737397840740,-248.17398725,0.0002007,2]
[349728529,1737397840750,-500.0,0.0002007,2]
[349728531,1737397840760,-153.26170881,0.0002007,2]
[349728533,1737397840771,-500.0,0.0002007,2]
[349728535,1737397840781,-500.0,0.0002007,2]
[349728537,1737397840790,-500.0,0.0002007,2]
[349728538,1737397840800,-500.0,0.0002007,2]
[349728539,1737397840809,-507.66154877,0.0002007,2]
[349728540,1737397840819,-648.58,0.0002007,2]
[349728541,1737397840829,-500.0,0.0002007,2]
[349728542,1737397840838,-500.0,0.0002007,2]
[349728543,1737397840847,-550.1011808,0.0002007,2]
[349728544,1737397840858,-500.0,0.0002007,2]
[349728545,1737397840868,-512.06085558,0.0002007,2]
[349728546,1737397840877,-500.0,0.0002007,2]
[349728548,1737397840887,-500.0,0.0002007,2]
[349728550,1737397840897,-500.0,0.0002007,2]
[349728552,1737397840906,-500.0,0.0002007,2]
[349728554,1737397840916,-500.0,0.0002007,2]
[349728556,1737397840925,-500.0,0.0002007,2]
[349728558,1737397840935,-284.79929659,0.0002007,2]
[349728560,1737397840944,-500.0,0.0002007,2]
[349728562,1737397840953,-500.0,0.0002007,2]
[349728564,1737397840963,-500.0,0.0002007,2]
[349728566,1737397840973,-500.0,0.0002007,2]
[349728568,1737397840983,-500.0,0.0002007,2]
[349728570,1737397840992,-500.0,0.0002007,2]
[349728572,1737397841002,-500.0,0.0002007,2]
[349728574,1737397841011,-500.0,0.0002007,2]
[349728576,1737397841023,-500.0,0.0002007,2]
[349728578,1737397841033,-422.59635745,0.0002007,2]
[349728580,1737397841042,-507.09917656,0.0002007,2]
[349728582,1737397841051,-500.0,0.0002007,2]
[349728585,1737397841061,-500.0,0.0002007,2]
[349728586,1737397841071,-813.51,0.0002007,2]
[349728589,1737397841080,-500.0,0.0002007,2]
[349728590,1737397841089,-500.0,0.0002007,2]
[349728593,1737397841098,-500.0,0.0002007,2]
[349728594,1737397841108,-500.0,0.0002007,2]
[349728596,1737397841117,-500.0,0.0002007,2]
[349728598,1737397841126,-500.0,0.0002007,2]
[349728601,1737397841138,-617.42,0.0002007,2]
[349728602,1737397841148,-500.0,0.0002007,2]
[349728604,1737397841157,-500.0,0.0002007,2]
[349728606,1737397841167,-500.0,0.0002007,2]
[349728624,1737397841332,-500.0,0.0002007,2]
[349728626,1737397841344,-1041.97,0.0002007,2]
[349728628,1737397841354,-500.0,0.0002007,2]
[349728630,1737397841365,-500.0,0.0002007,2]
[349728632,1737397841374,-500.0,0.0002007,2]
[349728634,1737397841384,-1772.91,0.0002007,2]
[349728636,1737397841394,-500.0,0.0002007,2]
[349728638,1737397841405,-500.0,0.0002007,2]
[349728640,1737397841415,-1049.94,0.0002007,2]
[349728642,1737397841427,-750.42,0.0002007,2]
[349728644,1737397841438,-562.34,0.0002007,2]
[349728646,1737397841447,-1636.87,0.0002007,2]
[349728648,1737397841456,-670.25,0.0002007,2]
[349728650,1737397841465,-509.89847375,0.0002007,2]
[349728652,1737397841474,-522.94,0.0002007,2]
[349728654,1737397841483,-1541.18,0.0002007,2]
[349728656,1737397841492,-284.06431727,0.0002007,2]
[349728658,1737397841501,-2806.17,0.0002007,2]
[349728660,1737397841510,-206.6156386,0.0002007,2]
[349728662,1737397841522,-500.0,0.0002007,2]
[349728664,1737397841531,-500.0,0.0002007,2]
[349728666,1737397841540,-5267.06,0.0002007,2]
[349728668,1737397841549,-811.89,0.0002007,2]
[349728670,1737397841558,-500.0,0.0002007,2]
[349728672,1737397841567,-591.11,0.0002007,2]
[349728674,1737397841576,-500.0,0.0002007,2]
[349728676,1737397841585,-500.0,0.0002007,2]
[349728678,1737397841594,-500.0,0.0002007,2]
[349728680,1737397841603,-585.55,0.0002007,2]
[349728682,1737397841613,-2198.8,0.0002007,2]
[349728684,1737397841623,-271.23105977,0.0002007,2]
[349728686,1737397841632,-500.0,0.0002007,7]
[349728688,1737397841641,-500.0,0.0002007,2]
[349728690,1737397841650,-943.09,0.0002007,2]
[349728692,1737397841659,-506.64335937,0.0002007,2]
[349728694,1737397841669,-500.0,0.0002007,2]
[349728696,1737397841678,-500.0,0.0002007,2]
[349728697,1737397841687,-500.0,0.0002007,2]
[349728699,1737397841697,-500.0,0.0002007,2]
[349728701,1737397841706,-500.0,0.0002007,2]
[349728703,1737397841715,-500.0,0.0002007,2]
[349728705,1737397841724,-500.0,0.0002007,2]
[349728707,1737397841733,-158.24717016,0.0002007,2]
[349728709,1737397841743,-1697.74,0.0002007,2]
[349728711,1737397841752,-1543.53,0.0002007,2]
[349728713,1737397841761,-500.0,0.0002007,2]
[349728715,1737397841772,-500.0,0.0002007,2]
[349728717,1737397841781,-500.0,0.0002007,2]
[349728719,1737397841790,-500.0,0.0002007,2]
[349728721,1737397841799,-500.0,0.0002007,2]
[349728723,1737397841808,-1295.84,0.0002007,2]
[349728725,1737397841818,-500.0,0.0002007,2]
[349728727,1737397841826,-2441.29,0.0002007,2]
[349728729,1737397841835,-500.0,0.0002007,2]
[349728731,1737397841845,-500.0,0.0002007,2]
[349728733,1737397841854,-500.0,0.0002007,2]
[349728735,1737397841864,-517.74,0.0002007,2]
[349728737,1737397841873,-506.43526092,0.0002007,2]
[349728739,1737397841882,-500.0,0.0002007,2]
[349728741,1737397841892,-500.0,0.0002007,2]
[349728743,1737397841902,-500.0,0.0002007,2]
[349728745,1737397841911,-775.72,0.0002007,2]
[349728747,1737397841921,-508.70125497,0.0002007,2]
[349728749,1737397841930,-500.0,0.0002007,2]
[349728751,1737397841940,-500.0,0.0002007,2]
[349728753,1737397841950,-500.0,0.0002007,2]
[349728755,1737397841959,-500.0,0.0002007,2]
[349728757,1737397841968,-500.0,0.0002007,2]
[349728759,1737397841978,-500.0,0.0002007,2]
[349728761,1737397841988,-504.59535543,0.0002007,2]
[349728763,1737397841997,-500.0,0.0002007,2]
[349728765,1737397842006,-1238.08,0.0002007,2]
[349728767,1737397842016,-500.0,0.0002007,2]
[349728769,1737397842026,-500.0,0.0002007,2]
[349728771,1737397842034,-1368.57,0.0002007,2]
[349728773,1737397842044,-608.49427626,0.0002007,2]
[349728775,1737397842053,-500.0,0.0002007,2]
[349728777,1737397842062,-500.0,0.0002007,2]
[349728779,1737397842072,-500.0,0.0002007,2]
[349728781,1737397842081,-505.06600671,0.0002007,2]
[349728783,1737397842090,-500.0,0.0002007,2]
[349728785,1737397842100,-501.6746836,0.0002007,2]
[349728787,1737397842109,-500.0,0.0002007,2]
[349728789,1737397842119,-500.0,0.0002007,2]
[349728791,1737397842128,-500.0,0.0002007,2]
[349728793,1737397842137,-1000.0,0.0002007,2]
[349728795,1737397842147,-500.0,0.0002007,2]
[349728797,1737397842156,-527.53,0.0002007,2]
[349728799,1737397842164,-500.0,0.0002007,2]
[349728801,1737397842174,-801.34,0.0002007,2]
[349728803,1737397842183,-988.73,0.0002007,2]
[349728805,1737397842192,-500.0,0.0002007,2]
[349728807,1737397842201,-500.0,0.0002007,2]
[349728809,1737397842210,-500.0,0.0002007,2]
[349728811,1737397842220,-500.0,0.0002007,2]
[349728813,1737397842228,-500.73421465,0.0002007,2]
[349728815,1737397842239,-500.0,0.0002007,2]
[349728817,1737397842248,-500.0,0.0002007,2]
[349728819,1737397842257,-500.0,0.0002007,2]
[349728821,1737397842268,-500.0,0.0002007,2]
[349728823,1737397842277,-899.98,0.0002007,2]
[349728825,1737397842286,-500.0,0.0002007,2]
[349728827,1737397842295,-500.0,0.0002007,2]
[349728829,1737397842306,-500.0,0.0002007,2]
[349728831,1737397842319,-503.51413611,0.0002007,2]
[349728833,1737397842328,-500.0,0.0002007,2]
[349728834,1737397842337,-500.0,0.0002007,2]
[349728835,1737397842348,-1398.85,0.0002007,2]
[349728836,1737397842359,-500.0,0.0002007,2]
[349728837,1737397842369,-500.0,0.0002007,2]
[349728838,1737397842378,-500.0,0.0002007,2]
[349728839,1737397842388,-500.0,0.0002007,2]
[349728840,1737397842399,-500.0,0.0002007,2]
[349728841,1737397842408,-966.69,0.0002007,2]
[349728843,1737397842417,-500.0,0.0002007,2]
[349728845,1737397842426,-335.40566435,0.0002007,2]
[349728847,1737397842435,-506.93517845,0.0002007,2]
[349728849,1737397842445,-500.0,0.0002007,2]
[349728851,1737397842454,-1419.75,0.0002007,2]
[349728852,1737397842463,-503.00850523,0.0002007,2]
[349728854,1737397842473,-500.0,0.0002007,2]
[349728856,1737397842482,-500.0,0.0002007,2]
[349728858,1737397842492,-500.0,0.0002007,2]
[349728860,1737397842500,-516.02862644,0.0002007,2]
[349728862,1737397842509,-500.0,0.0002007,2]
[349728864,1737397842520,-505.10532226,0.0002007,2]
[349728865,1737397842530,-500.0,0.0002007,2]
[349728866,1737397842539,-500.0,0.00020073,2]
[349728867,1737397842548,-150.9890822,0.00020073,2]
[349728868,1737397842558,-150.98903296,0.00020073,2]
[349728869,1737397842567,-160.00917673,0.00020073,2]
[349728870,1737397842576,-500.0,0.00020073,2]
[349728871,1737397842586,-45316.48534312,0.00020095,2]
[349728872,1737397842595,-28565.53006295,0.00020095,2]
[349728873,1737397842604,-3000.0,0.000201,2]
[349728874,1737397842614,-150.0,0.00020117,2]
[349728875,1737397842623,-3000.0,0.0002012,2]
[349728876,1737397842632,-209.4912608,0.00020122,2]
[349728877,1737397842642,-3000.0,0.0002013,2]
[349728878,1737397842651,-3000.0,0.0002014,2]
[349728879,1737397842660,-3000.0,0.0002016,2]
[349728880,1737397842670,-500.0,0.00020168,2]
[349728881,1737397842679,-500.0,0.00020168,2]
[349728882,1737397842688,-500.0,0.00020168,2]
[349728884,1737397842697,-500.0,0.00020168,2]
[349728886,1737397842706,-505.13445066,0.00020168,2]
[349728888,1737397842715,-500.0,0.00020168,2]
[349728890,1737397842725,-285.93035026,0.00020168,2]
[349728892,1737397842734,-500.0,0.00020168,2]
[349728894,1737397842743,-500.0,0.00020168,2]
[349728896,1737397842753,-500.0,0.00020168,2]
[349728898,1737397842763,-500.0,0.00020168,2]
[349728900,1737397842773,-500.0,0.00020168,2]
[349728902,1737397842782,-500.0,0.00020168,2]
[349728904,1737397842791,-500.0,0.00020168,2]
[349728906,1737397842800,-500.0,0.00020168,2]
[349728908,1737397842809,-500.0,0.00020168,2]
[349728910,1737397842819,-500.0,0.00020168,2]
[349728912,1737397842828,-500.0,0.00020168,2]
[349728913,1737397842837,-500.0,0.00020168,2]
[349728915,1737397842847,-500.0,0.00020168,2]
[349728917,1737397842856,-500.0,0.00020168,2]
[349728919,1737397842866,-500.0,0.00020168,2]
[349728922,1737397842876,-500.0,0.00020168,2]
[349728923,1737397842885,-500.0,0.00020168,2]
[349728925,1737397842895,-500.0,0.00020168,2]
[349728927,1737397842904,-500.0,0.00020168,2]
[349728929,1737397842914,-500.0,0.00020168,2]
[349728931,1737397842923,-500.0,0.00020168,2]
[349728933,1737397842933,-500.0,0.00020168,2]
[349728936,1737397842943,-500.0,0.00020168,2]
[349728937,1737397842953,-500.0,0.00020168,2]
[349728940,1737397842963,-500.0,0.00020168,2]
[349728942,1737397842973,-500.0,0.00020168,2]
[349728944,1737397842983,-500.0,0.00020168,2]
[349728946,1737397842993,-500.0,0.00020168,2]
[349728947,1737397843003,-500.0,0.00020168,2]
[349728950,1737397843012,-500.0,0.00020168,2]
[349728952,1737397843024,-500.0,0.00020168,2]
[349728954,1737397843034,-500.0,0.00020168,2]
[349728955,1737397843043,-500.0,0.00020168,2]
[349728957,1737397843052,-500.0,0.00020168,2]
[349728959,1737397843062,-500.0,0.00020168,2]
[349728961,1737397843072,-500.0,0.00020168,2]
[349728963,1737397843082,-500.0,0.00020168,2]
[349728965,1737397843092,-500.0,0.00020168,2]
[349728967,1737397843101,-500.0,0.00020168,2]
[349728969,1737397843111,-500.0,0.00020168,2]
[349728971,1737397843120,-500.0,0.00020168,2]
[349728973,1737397843130,-500.0,0.00020168,2]
[349728975,1737397843139,-500.0,0.00020168,2]
[349728977,1737397843149,-500.0,0.00020168,2]
[349728979,1737397843158,-500.0,0.00020168,2]
[349728981,1737397843167,-500.0,0.00020168,2]
[349728983,1737397843176,-500.0,0.00020168,2]
[349728985,1737397843186,-500.0,0.00020168,2]
[349728987,1737397843196,-500.0,0.00020168,2]
[349728989,1737397843204,-500.0,0.00020168,2]
[349728991,1737397843214,-500.0,0.00020168,2]
[349728993,1737397843223,-500.0,0.00020168,2]
[349728995,1737397843232,-500.0,0.00020168,2]
[349728997,1737397843241,-500.0,0.00020168,2]
[349728999,1737397843251,-500.0,0.00020168,2]
[349729001,1737397843260,-735.82,0.00020168,2]
[349729003,1737397843272,-500.0,0.00020168,2]
[349729005,1737397843281,-513.05,0.00020168,2]
[349729007,1737397843291,-500.0,0.00020168,2]
[349729009,1737397843302,-500.0,0.00020168,2]
[349729011,1737397843312,-500.0,0.00020168,2]
[349729013,1737397843325,-500.0,0.00020168,2]
[349729015,1737397843335,-500.0,0.00020168,2]
[349729017,1737397843346,-500.0,0.00020168,2]
[349729019,1737397843356,-531.58,0.00020168,2]
[349729021,1737397843366,-500.0,0.00020168,2]
[349729023,1737397843376,-500.0,0.00020168,2]
[349729025,1737397843386,-500.0,0.00020168,2]
[349729027,1737397843398,-500.0,0.00020168,2]
[349729028,1737397843407,-500.0,0.00020168,2]
[349729031,1737397843418,-500.0,0.00020168,2]
[349729032,1737397843427,-500.0,0.00020169,2]
[349729034,1737397843436,-500.0,0.00020169,2]
[349729036,1737397843446,-561.68503157,0.00020169,2]
[349729038,1737397843455,-500.0,0.00020169,2]
[349729040,1737397843464,-503.65266573,0.00020169,2]
[349729042,1737397843474,-500.0,0.00020169,2]
[349729044,1737397843484,-500.0,0.00020169,2]
[349729046,1737397843494,-500.0,0.00020169,2]
[349729048,1737397843503,-500.0,0.00020169,2]
[349729050,1737397843512,-500.0,0.00020169,2]
[349729052,1737397843527,-500.0,0.00020169,2]
[349729054,1737397843537,-500.0,0.00020169,2]
[349729056,1737397843546,-500.0,0.00020169,2]
[349729058,1737397843556,-500.0,0.00020169,2]
[349729060,1737397843565,-500.0,0.00020169,2]
[349729061,1737397843575,-500.0,0.00020169,2]
[349729062,1737397843584,-500.0,0.00020169,2]
[349729063,1737397843594,-500.0,0.00020169,2]
[349729064,1737397843603,-500.0,0.00020169,2]
[349729065,1737397843613,-500.0,0.00020169,2]
[349729066,1737397843622,-500.0,0.00020169,2]
[349729067,1737397843632,-500.0,0.00020169,2]
[349729068,1737397843642,-375.27828906,0.00020169,2]
[349729069,1737397843651,-500.0,0.00020169,2]
[349729070,1737397843661,-500.0,0.00020169,2]
[349729072,1737397843671,-500.0,0.00020169,2]
[349729074,1737397843680,-500.0,0.00020169,2]
[349729076,1737397843689,-500.0,0.00020169,2]
[349729078,1737397843699,-500.0,0.00020169,2]
[349729080,1737397843708,-500.0,0.00020169,2]
[349729082,1737397843717,-500.0,0.00020169,2]
[349729084,1737397843726,-500.0,0.00020169,2]
[349729086,1737397843735,-500.0,0.00020169,2]
[349729088,1737397843746,-500.0,0.00020169,2]
[349729090,1737397843755,-500.0,0.00020169,2]
[349729092,1737397843764,-500.0,0.00020169,2]
[349729094,1737397843778,-500.0,0.00020169,2]
[349729095,1737397843787,-500.0,0.00020169,2]
[349729097,1737397843796,-500.0,0.00020169,2]
[349729099,1737397843806,-386.51829599,0.00020169,2]
[349729101,1737397843815,-500.0,0.00020169,2]
[349729103,1737397843827,-503.7200035,0.00020169,2]
[349729105,1737397843837,-500.70823528,0.00020169,2]
[349729107,1737397843846,-500.0,0.00020169,2]
[349729109,1737397843856,-500.0,0.00020169,2]
[349729111,1737397843865,-151.03874766,0.00020169,2]
[349729113,1737397843874,-503.37592142,0.00020169,2]
[349729115,1737397843883,-500.0,0.00020169,2]
[349729117,1737397843893,-500.0,0.00020169,2]
[349729119,1737397843904,-500.0,0.00020169,2]
[349729121,1737397843913,-500.0,0.00020169,2]
[349729123,1737397843922,-507.9925735,0.00020169,2]
[349729125,1737397843931,-500.0,0.00020169,2]
[349729127,1737397843941,-500.0,0.00020169,2]
[349729129,1737397843950,-500.0,0.00020169,2]
[349729132,1737397843960,-500.0,0.00020169,2]
[349729133,1737397843969,-500.0,0.00020169,2]
[349729135,1737397843978,-500.0,0.00020169,2]
[349729137,1737397843988,-500.0,0.00020169,2]
[349729139,1737397843998,-500.0,0.00020169,2]
[349729141,1737397844006,-500.0,0.00020169,2]
[349729143,1737397844016,-500.0,0.00020169,2]
[349729146,1737397844028,-500.0,0.00020169,2]
[349729147,1737397844037,-500.0,0.00020169,2]
[349729150,1737397844047,-500.0,0.00020169,2]
[349729152,1737397844056,-500.0,0.00020169,2]
[349729154,1737397844066,-500.0,0.00020169,2]
[349729156,1737397844076,-500.0,0.00020169,2]
[349729158,1737397844085,-500.0,0.00020169,2]
[349729160,1737397844095,-500.0,0.00020169,2]
[349729162,1737397844104,-500.0,0.00020169,2]
[349729164,1737397844114,-500.0,0.00020169,2]
[349729166,1737397844123,-500.0,0.00020169,2]
[349729168,1737397844134,-500.0,0.00020169,2]
[349729170,1737397844145,-500.0,0.00020169,2]
[349729172,1737397844155,-500.0,0.00020169,2]
[349729174,1737397844164,-500.0,0.00020169,2]
[349729176,1737397844173,-424.6865,0.00020172,2]
[349729178,1737397844182,-150.98852089,0.00020173,2]
[349729180,1737397844192,-159.98837937,0.00020173,2]
[349729182,1737397844202,-150.98903174,0.00020173,2]
[349729184,1737397844211,-150.98908219,0.00020173,2]
[349729186,1737397844221,-3000.0,0.0002018,2]
[349729188,1737397844232,-150.0,0.00020193,2]
[349729190,1737397844241,-683.3228189,0.00020196,2]
[349729192,1737397844250,-150.0,0.00020221,2]
[349729194,1737397844259,-209.4912608,0.00020233,2]
[349729196,1737397844270,-500.0,0.00020242,2]
[349729198,1737397844279,-500.0,0.00020242,2]
[349729200,1737397844289,-302.01607765,0.00020242,2]
[349729216,1737397844447,-500.0,0.00020242,2]
[349729217,1737397844458,-500.0,0.00020242,2]
[349729218,1737397844467,-500.0,0.00020242,2]
[349729219,1737397844477,-500.0,0.00020242,2]
[349729220,1737397844487,-500.0,0.00020242,2]
[349729221,1737397844498,-616.66934,0.00020243,2]
[349729222,1737397844515,-500.0,0.00020243,2]
[349729223,1737397844531,-500.0,0.00020243,2]
[349729224,1737397844540,-758.96,0.00020243,2]
[349729225,1737397844549,-596.669327,0.00020243,2]
[349729226,1737397844558,-500.0,0.00020243,2]
[349729227,1737397844567,-1743.11,0.00020243,2]
[349729228,1737397844580,-1379.8,0.00020243,2]
[349729229,1737397844594,-500.0,0.00020243,2]
[349729230,1737397844605,-500.0,0.00020243,2]
[349729232,1737397844614,-500.0,0.00020243,2]
[349729234,1737397844623,-3211.89,0.00020243,2]
[349729236,1737397844633,-500.0,0.00020243,2]
[349729238,1737397844643,-719.26,0.00020243,2]
[349729240,1737397844652,-1284.65,0.00020243,2]
[349729242,1737397844662,-923.32,0.00020243,2]
[349729244,1737397844671,-1202.05,0.00020243,2]
[349729246,1737397844681,-542.65,0.00020243,2]
[349729248,1737397844690,-500.0,0.00020243,2]
[349729250,1737397844700,-510.93,0.00020243,2]
[349729251,1737397844709,-500.0,0.00020243,2]
[349729253,1737397844718,-2369.21,0.00020243,2]
[349729255,1737397844727,-500.0,0.00020243,2]
[349729257,1737397844737,-1325.13,0.00020243,2]
[349729259,1737397844746,-1421.64,0.00020243,2]
[349729261,1737397844756,-3407.58,0.00020243,2]
[349729263,1737397844765,-1792.88,0.00020243,2]
[349729265,1737397844777,-500.0,0.00020243,2]
[349729267,1737397844786,-1026.23,0.00020243,2]
[349729269,1737397844795,-656.47,0.00020243,2]
[349729271,1737397844804,-1175.98,0.00020243,2]
[349729273,1737397844814,-1093.21,0.00020243,2]
[349729275,1737397844823,-500.0,0.00020243,2]
[349729277,1737397844832,-2073.11,0.00020243,2]
[349729279,1737397844841,-2287.33,0.00020243,2]
[349729281,1737397844850,-500.0,0.00020243,2]
[349729283,1737397844859,-2360.21,0.00020243,2]
[349729285,1737397844869,-1517.47,0.00020243,2]
[349729287,1737397844878,-500.0,0.00020243,2]
[349729289,1737397844887,-728.35,0.00020243,2]
[349729291,1737397844896,-500.0,0.00020243,2]
[349729293,1737397844905,-777.0,0.00020243,2]
[349729295,1737397844914,-525.86,0.00020243,2]
[349729297,1737397844924,-1352.97,0.00020243,2]
[349729298,1737397844933,-500.0,0.00020243,2]
[349729299,1737397844943,-2621.73,0.00020243,2]
[349729300,1737397844952,-2214.8,0.00020243,2]
[349729301,1737397844961,-500.0,0.00020243,2]
[349729302,1737397844971,-500.0,0.00020243,2]
[349729303,1737397844980,-921.05,0.00020243,2]
[349729304,1737397844990,-1050.29,0.00020243,2]
[349729305,1737397844999,-500.0,0.00020243,2]
[349729307,1737397845009,-500.0,0.00020243,2]
[349729308,1737397845018,-2832.84,0.00020243,2]
[349729310,1737397845027,-500.0,0.00020243,2]
[349729312,1737397845037,-1599.49,0.00020243,2]
[349729314,1737397845047,-455.00884832,0.00020244,2]
[349729316,1737397845057,-150.0,0.00020263,2]
[349729319,1737397845067,-2000.0,0.00020272,2]
[349729321,1737397845077,-200.0,0.00020272,2]
[349729322,1737397845087,-200.0,0.00020272,2]
[349729324,1737397845096,-150.98903178,0.00020273,2]
[349729326,1737397845105,-150.0,0.00020281,2]
[349729328,1737397845115,-151.0,0.00020291,2]
[349729330,1737397845125,-45316.48534312,0.0002032,2]
[349729332,1737397845135,-28565.53006295,0.00020321,2]